bitfinex-derivatives/quotes_SOLF0:USTF0_20250211
["timestamp","ask_amount","ask_price","bid_price","bid_amount"]
[1739280161612,8.56106519,201.25,201.2,0.03727906]
[1739280161808,8.52729154,201.22,201.2,0.03727906]
[1739280162115,8.52729154,201.24,201.2,0.03727906]
[1739280162410,0.03377365,201.25,201.24,4.9679]
[1739280163216,0.03377365,201.25,201.22,4.9681]
[1739280163414,0.03377365,201.25,201.2,8.5645706]
[1739280163815,0.03377365,201.25,201.23,4.9681]
[1739280164316,8.52729154,201.24,201.21,4.9686]
[1739280164518,8.52729154,201.22,201.2,0.03727906]
[1739280165317,103.0,201.21,201.03,82.31800031]
[1739280165518,8.52729154,201.08,201.03,82.31800031]
[1739280166013,8.52729154,201.06,201.03,82.31800031]
[1739280166221,8.52729154,201.06,201.04,82.31800031]
[1739280167018,0.03819024,201.08,201.04,82.31800031]
[1739280167224,8.52729154,201.06,201.05,52.04001705]
[1739280167426,0.03819024,201.08,201.05,52.04001705]
[1739280168325,0.03819024,201.08,201.06,4.9723]
[1739280168721,9.024e-05,201.08,201.06,4.9723]
[1739280172530,9.024e-05,201.08,201.04,14.82537611]
[1739280172727,9.024e-05,201.08,201.07,4.9721]
[1739280174932,9.024e-05,201.08,201.07,18.32227611]
[1739280176027,1.6001,201.21,201.18,4.9693]
[1739280177239,0.03427858,201.22,201.17,0.03755345]
[1739280177932,0.03427858,201.22,201.18,4.9691]
[1739280178237,0.03427858,201.22,201.17,0.03755345]
[1739280179030,0.03427858,201.22,201.21,4.9686]
[1739280179234,0.03427858,201.22,201.17,0.03755345]
[1739280180038,0.03427858,201.22,201.18,4.9693]
[1739280180340,0.03427858,201.22,201.17,0.03755345]
[1739280180537,0.03427858,201.22,201.21,4.9686]
[1739280182330,0.03427858,201.22,201.17,0.03755345]
[1739280182536,13.35017611,201.21,201.17,0.03755345]
[1739280183132,18.31897611,201.21,201.17,0.03755345]
[1739280183738,4.9689,201.2,201.17,0.03755345]
[1739280184342,18.31957611,201.18,201.17,0.03755345]
[1739280184538,18.31957611,201.18,201.12,4.9708]
[1739280185139,4.9697,201.17,201.12,4.9708]
[1739280185340,13.35017611,201.18,201.05,13.35017611]
[1739280185735,0.03266077,201.14,201.09,0.03794937]
[1739280185936,0.03266077,201.14,201.11,4.9709]
[1739280186844,0.03266077,201.14,201.09,5.00934937]
[1739280187642,5.00306077,201.14,201.1,4.9713]
[1739280187946,5.00306077,201.14,201.09,0.03794937]
[1739280188538,4.9706,201.13,201.09,5.00954937]
[1739280189041,0.03266077,201.14,201.09,0.03794937]
[1739280189244,13.35017611,201.12,201.09,0.03794937]
[1739280189648,4.9714,201.1,201.09,0.03794937]
[1739280190038,13.35017611,201.12,201.01,1.5507]
[1739280190847,4.9718,201.09,201.05,4.9726]
[1739280191048,13.35017611,201.12,201.01,1.5507]
[1739280191249,0.03230086,201.09,201.05,0.03164236]
[1739280191849,5.00390086,201.09,201.05,5.00414236]
[1739280192150,0.03230086,201.09,201.05,0.03164236]
[1739280192548,0.03230086,201.09,201.08,4.9719]
[1739280193145,8.6e-07,201.09,201.08,4.9719]
[1739280193444,8.6e-07,201.09,201.08,18.32207611]
[1739280193847,80.11237277,201.24,201.17,4.9696]
[1739280194144,80.11237277,201.24,201.11,13.35017611]
[1739280194350,4.9686,201.22,201.11,13.35017611]
[1739280194649,80.11237277,201.24,201.11,13.35017611]
[1739280194849,80.11237277,201.24,201.12,1.549]
[1739280195049,0.03180361,201.2,201.15,0.03406849]
[1739280195452,0.03180361,201.2,201.16,4.9697]
[1739280195652,0.03180361,201.2,201.15,0.03406849]
[1739280197848,0.03180361,201.2,201.15,5.00396849]
[1739280198358,5.00070361,201.2,201.15,5.00396849]
[1739280198757,5.00070361,201.2,201.16,4.9699]
[1739280198958,0.03180361,201.2,201.16,4.9699]
[1739280200057,0.03180361,201.2,201.15,0.03406849]
[1739280200659,0.03180361,201.2,201.16,4.9697]
[1739280201061,0.03180361,201.2,201.15,0.03406849]
[1739280201363,4.9694,201.18,201.15,0.03406849]
[1739280201663,0.03180361,201.2,201.15,0.03406849]
[1739280202359,4.9692,201.19,201.15,5.00396849]
[1739280202961,0.03180361,201.2,201.15,0.03406849]
[1739280203163,5.00090361,201.2,201.16,4.9698]
[1739280203463,0.03180361,201.2,201.16,4.9698]
[1739280203763,4.9691,201.19,201.15,0.03406849]
[1739280203962,0.03180361,201.2,201.15,0.03406849]
[1739280205662,4.9698,201.17,201.15,0.03406849]
[1739280207464,4.9696,201.17,201.15,0.03406849]
[1739280207760,13.35017611,201.18,201.15,0.03406849]
[1739280208062,4.9696,201.17,201.15,0.03406849]
[1739280209260,4.9699,201.16,201.15,0.03406849]
[1739280210868,4.9696,201.17,201.15,0.03406849]
[1739280211168,13.35017611,201.18,201.15,0.03406849]
[1739280211661,4.9699,201.16,201.15,0.03406849]
[1739280213173,13.35017611,201.18,201.09,4.9714]
[1739280213174,4.9709,201.12,201.09,4.9714]
[1739280213370,13.35017611,201.13,201.03,1.4983]
[1739280213672,4.9713,201.11,201.07,4.9719]
[1739280213866,13.35017611,201.13,201.07,4.9719]
[1739280214369,13.35017611,201.1,201.08,0.03349275]
[1739280214764,4.9716,201.09,201.08,0.03349275]
[1739280216877,13.35017611,201.1,201.08,0.03349275]
[1739280217381,4.9716,201.09,201.08,0.03349275]
[1739280217681,13.35017611,201.1,201.08,0.03349275]
[1739280217888,18.32157611,201.1,201.08,0.03349275]
[1739280218479,4.9714,201.1,201.08,0.03349275]
[1739280218781,0.03512997,201.12,201.08,0.03349275]
[1739280219881,5.00622997,201.12,201.08,5.00529275]
[1739280220082,5.00622997,201.12,201.08,0.03349275]
[1739280220380,4.9714,201.1,201.08,0.03349275]
[1739280220581,0.03512997,201.12,201.08,0.03349275]
[1739280221679,4.9716,201.09,201.08,0.03349275]
[1739280222283,0.03512997,201.12,201.08,0.03349275]
[1739280223384,0.03512997,201.12,201.1,4.9713]
[1739280224982,4.9711,201.11,201.08,0.03349275]
[1739280225481,4.9711,201.11,201.08,5.00529275]
[1739280226176,0.03512997,201.12,201.08,0.03349275]
[1739280226783,0.03512997,201.12,201.1,4.9713]
[1739280226983,0.03512997,201.12,201.08,0.03349275]
[1739280227387,0.03512997,201.12,201.11,4.9711]
[1739280228984,0.03512997,201.12,201.09,3.0686]
[1739280229193,0.03512997,201.12,201.08,0.03349275]
[1739280229483,5.00622997,201.12,201.08,5.00519275]
[1739280229883,5.00622997,201.12,201.08,0.03349275]
[1739280230089,0.03512997,201.12,201.08,0.03349275]
[1739280230687,5.00622997,201.12,201.08,0.03349275]
[1739280230988,0.03512997,201.12,201.08,0.03349275]
[1739280231287,5.00612997,201.12,201.08,5.00529275]
[1739280232296,4.9712,201.11,201.08,5.00529275]
[1739280232489,0.03512997,201.12,201.08,5.00529275]
[1739280232885,0.03512997,201.12,201.08,0.03349275]
[1739280234091,0.03512997,201.12,201.11,4.9711]
[1739280234793,0.03512997,201.12,201.09,4.9716]
[1739280235390,5.00602997,201.12,201.1,4.9714]
[1739280235688,0.03512997,201.12,201.1,4.9714]
[1739280235888,0.03512997,201.12,201.08,0.03349275]
[1739280236089,0.03512997,201.12,201.11,4.9711]
[1739280236594,0.03512997,201.12,201.08,0.03349275]
[1739280236796,0.03512997,201.12,201.1,4.9713]
[1739280237598,0.03512997,201.12,201.09,4.9715]
[1739280237794,0.03512997,201.12,201.08,0.03349275]
[1739280238700,0.03512997,201.12,201.1,4.9712]
[1739280238899,0.03512997,201.12,201.08,0.03349275]
[1739280239394,0.03512997,201.12,201.11,4.9711]
[1739280240797,0.03512997,201.12,201.1,4.9713]
[1739280241599,0.03512997,201.12,201.11,4.9711]
[1739280242604,13.35017611,201.23,201.09,13.35017611]
[1739280242804,4.9688,201.21,201.18,4.9694]
[1739280242991,13.35017611,201.26,201.18,4.9694]
[1739280243193,4.9687,201.21,201.13,1.5589]
[1739280243503,13.35017611,201.26,201.13,1.5589]
[1739280243698,18.31777611,201.26,201.21,4.9685]
[1739280244001,18.35061216,201.26,201.21,4.9685]
[1739280244195,0.03283605,201.26,201.22,4.9683]
[1739280244397,0.03283605,201.26,201.21,0.03238044]
[1739280244800,0.03283605,201.26,201.23,4.9679]
[1739280245103,0.03283605,201.26,201.21,0.03238044]
[1739280246200,0.03283605,201.26,201.23,4.9679]
[1739280246793,0.03283605,201.26,201.21,0.03238044]
[1739280247291,0.03283605,201.26,201.25,4.9677]
[1739280248903,0.03283605,201.26,201.22,1.56]
[1739280249299,0.03283605,201.26,201.23,4.968]
[1739280250604,0.03283605,201.26,201.25,4.9677]
[1739280250805,0.03283605,201.26,201.21,0.03238044]
[1739280251400,0.03283605,201.26,201.24,4.9679]
[1739280252501,0.03283605,201.26,201.23,4.9681]
[1739280252703,0.03283605,201.26,201.21,0.03238044]
[1739280253101,0.03283605,201.26,201.21,5.00098044]
[1739280253598,4.968,201.24,201.21,0.03238044]
[1739280253795,0.03283605,201.26,201.21,0.03238044]
[1739280254605,4.9679,201.25,201.21,5.00098044]
[1739280255002,0.03283605,201.26,201.21,0.03238044]
[1739280256901,0.03283605,201.26,201.25,4.9677]
[1739280260505,13.35017611,201.35,201.21,13.38255655]
[1739280260704,13.35017611,201.35,201.24,13.35017611]
[1739280261103,13.35017611,201.35,201.21,13.35017611]
[1739280261304,13.35017611,201.35,201.26,4.9674]
[1739280261807,13.35017611,201.32,201.28,0.03141877]
[1739280262010,13.35017611,201.29,201.28,0.03141877]
[1739280262209,18.31687611,201.29,201.28,0.03141877]
[1739280266508,13.35017611,201.32,201.28,0.03141877]
[1739280266809,0.03378239,201.33,201.28,4.99811877]
[1739280267114,0.03378239,201.33,201.28,0.03141877]
[1739280267608,0.03378239,201.33,201.31,4.966]
[1739280268911,0.03378239,201.33,201.28,0.03141877]
[1739280269313,18.31687611,201.29,201.28,0.03141877]
[1739280269610,18.31687611,201.29,201.2,1.5943]
[1739280269611,13.35017611,201.29,201.2,1.5943]
[1739280269815,13.35017611,201.26,201.2,1.5943]
[1739280270417,4.9679,201.25,201.2,6.5631]
[1739280270715,5.00216238,201.25,201.2,6.5964509]
[1739280271013,0.03426238,201.25,201.2,6.5964509]
[1739280271914,0.03426238,201.25,201.2,1.6276509]
[1739280272224,0.03426238,201.25,201.2,0.0333509]
[1739280273419,13.35017611,201.23,201.2,0.0333509]
[1739280274724,4.9684,201.22,201.2,0.0333509]
[1739280275118,13.35017611,201.23,201.2,0.0333509]
[1739280275323,4.9681,201.24,201.2,0.0333509]
[1739280276018,0.03426238,201.25,201.2,5.0021509]
[1739280276213,4.9686,201.22,201.2,0.0333509]
[1739280276722,0.03426238,201.25,201.2,0.0333509]
[1739280276923,4.9682,201.23,201.2,0.0333509]
[1739280277222,0.03426238,201.25,201.2,5.0022509]
[1739280277425,0.03426238,201.25,201.2,0.0333509]
[1739280278424,0.03426238,201.25,201.23,4.9679]
[1739280278624,0.03426238,201.25,201.2,0.0333509]
[1739280279024,0.03426238,201.25,201.22,4.9682]
[1739280279426,0.03426238,201.25,201.2,0.0333509]
[1739280279723,0.03426238,201.25,201.23,4.9681]
[1739280280326,0.03426238,201.25,201.2,0.0333509]
[1739280281027,0.03426238,201.25,201.24,4.9679]
[1739280281825,0.03426238,201.25,201.2,0.0333509]
[1739280282922,0.03426238,201.25,201.22,4.9682]
[1739280284029,5.00206238,201.25,201.22,4.9682]
[1739280284830,0.03426238,201.25,201.23,4.9681]
[1739280285633,0.03426238,201.25,201.24,4.9679]
[1739280289037,0.03426238,201.25,201.21,4.5285]
[1739280289038,0.03426238,201.25,201.22,4.9683]
[1739280289340,0.03426238,201.25,201.21,4.5285]
[1739280289533,0.03426238,201.25,201.21,4.9686]
[1739280290238,0.03426238,201.25,201.22,4.9684]
[1739280290839,5.00216238,201.25,201.22,4.9684]
[1739280291338,0.03426238,201.25,201.22,4.9684]
[1739280291544,4.9679,201.24,201.22,4.9684]
[1739280291943,0.03426238,201.25,201.22,4.9684]
[1739280292244,0.03426238,201.25,201.2,0.0333509]
[1739280293041,0.03426238,201.25,201.24,4.9679]
[1739280297345,4.9662,201.31,201.27,4.9669]
[1739280297737,4.9662,201.31,201.24,4.9679]
[1739280297941,4.9662,201.31,201.21,1.5999]
[1739280298141,13.35017611,201.33,201.18,13.35017611]
[1739280298344,0.03150758,201.28,201.26,4.9674]
[1739280298542,0.03150758,201.28,201.24,0.03692556]
[1739280298847,4.9673,201.27,201.24,0.03692556]
[1739280299046,0.03150758,201.28,201.24,0.03692556]
[1739280299743,0.03150758,201.28,201.26,4.9674]
[1739280301047,4.99840758,201.28,201.24,0.03692556]
[1739280301950,0.03150758,201.28,201.24,0.03692556]
[1739280302749,0.03150758,201.28,201.25,4.9675]
[1739280303048,0.03150758,201.28,201.24,0.03692556]
[1739280303248,0.03150758,201.28,201.25,4.9675]
[1739280303449,0.03150758,201.28,201.24,0.03692556]
[1739280303847,0.03150758,201.28,201.27,4.9672]
[1739280304240,0.03150758,201.28,201.24,0.03692556]
[1739280304551,0.03150758,201.28,201.27,4.9672]
[1739280305349,66.71785073,201.38,201.31,4.966]
[1739280305350,13.35017611,201.36,201.31,4.966]
[1739280306653,4.9653,201.35,201.31,5.00269677]
[1739280306850,4.9653,201.35,201.32,4.9659]
[1739280307150,4.9653,201.35,201.31,0.03669677]
[1739280307951,4.9654,201.34,201.31,0.03669677]
[1739280309050,4.9652,201.35,201.31,0.03669677]
[1739280309247,4.9652,201.35,201.31,5.00269677]
[1739280309450,0.03709023,201.36,201.31,0.03669677]
[1739280309851,0.03709023,201.36,201.34,4.9652]
[1739280310353,0.03709023,201.36,201.31,0.03669677]
[1739280310552,0.03709023,201.36,201.35,4.9652]
[1739280314355,4.9635,201.42,201.33,13.35017611]
[1739280314558,4.9635,201.42,201.34,1.5689]
[1739280315052,4.9635,201.42,201.37,4.9645]
[1739280315252,4.9635,201.42,201.34,1.5689]
[1739280315452,4.99687834,201.42,201.37,0.03433658]
[1739280315650,4.99687834,201.42,201.38,4.9642]
[1739280316054,4.99687834,201.42,201.37,0.03433658]
[1739280316254,0.03337834,201.42,201.37,0.03433658]
[1739280316955,0.03337834,201.42,201.4,4.9639]
[1739280317156,0.03337834,201.42,201.37,0.03433658]
[1739280317553,4.99687834,201.42,201.37,0.03433658]
[1739280318657,4.99687834,201.42,201.39,4.964]
[1739280321257,0.03337834,201.42,201.39,4.964]
[1739280321761,0.03337834,201.42,201.37,0.03433658]
[1739280321961,0.03337834,201.42,201.4,4.9639]
[1739280322258,0.03337834,201.42,201.39,13.35017611]
[1739280323153,0.03337834,201.42,201.41,4.9637]
[1739280323351,0.03337834,201.42,201.38,1.4892]
[1739280323754,0.03337834,201.42,201.41,4.9637]
[1739280323959,0.03337834,201.42,201.38,10.00528253]
[1739280324453,0.03337834,201.42,201.41,4.9637]
[1739280325156,8.51608253,201.49,201.46,4.9623]
[1739280325360,8.51608253,201.53,201.46,8.51608253]
[1739280325558,4.9615,201.51,201.46,8.51608253]
[1739280325757,8.51608253,201.53,201.49,4.9615]
[1739280325956,8.51608253,201.55,201.49,4.9615]
[1739280326251,4.9606,201.54,201.5,0.03439794]
[1739280326457,4.99776764,201.54,201.5,0.03439794]
[1739280326753,0.03716764,201.54,201.51,4.9612]
[1739280327753,0.03716764,201.54,201.5,0.03439794]
[1739280328561,4.99766764,201.54,201.5,0.03439794]
[1739280329060,4.9612,201.51,201.5,0.03439794]
[1739280329456,18.25201312,201.51,201.5,0.03439794]
[1739280329759,13.29081312,201.51,201.38,14.78001312]
[1739280329959,13.29081312,201.48,201.38,14.78001312]
[1739280330163,4.9622,201.47,201.38,14.78001312]
[1739280330363,13.29081312,201.48,201.38,14.78001312]
[1739280330761,0.03412127,201.45,201.41,5.00038859]
[1739280332865,0.03412127,201.45,201.41,0.03678859]
[1739280333067,0.03412127,201.45,201.42,4.9634]
[1739280333863,0.03412127,201.45,201.41,5.00048859]
[1739280334267,0.03412127,201.45,201.41,0.03678859]
[1739280334468,4.99692127,201.45,201.41,0.03678859]
[1739280334769,0.03412127,201.45,201.41,0.03678859]
[1739280334960,0.03412127,201.45,201.42,4.9632]
[1739280335974,0.03412127,201.45,201.44,4.963]
[1739280336271,0.03412127,201.45,201.41,0.03678859]
[1739280337169,0.03412127,201.45,201.43,4.963]
[1739280337769,0.03412127,201.45,201.44,4.963]
[1739280340769,13.29081312,201.54,201.48,4.9618]
[1739280340968,13.29081312,201.57,201.44,13.29081312]
[1739280341167,4.9608,201.53,201.44,13.29081312]
[1739280341371,13.29081312,201.57,201.47,13.29081312]
[1739280341869,0.03671762,201.54,201.52,4.9609]
[1739280342371,0.03671762,201.54,201.53,4.9608]
[1739280342570,0.03671762,201.54,201.5,0.03492585]
[1739280343173,13.32753074,201.54,201.5,0.03492585]
[1739280344774,4.9612,201.51,201.5,0.03492585]
[1739280344974,0.03671762,201.54,201.5,0.03492585]
[1739280345672,0.03671762,201.54,201.51,4.9612]
[1739280346180,0.03671762,201.54,201.52,4.961]
[1739280346380,4.99721762,201.54,201.5,0.03492585]
[1739280346576,0.03671762,201.54,201.51,4.9612]
[1739280347282,0.03671762,201.54,201.5,0.03492585]
[1739280347577,0.03671762,201.54,201.53,4.9608]
[1739280353196,0.03671762,201.54,201.52,4.9609]
[1739280353587,0.03671762,201.54,201.5,0.03492585]
[1739280353887,0.03671762,201.54,201.52,4.9609]
[1739280355392,4.9608,201.53,201.5,4.99622585]
[1739280355692,0.03671762,201.54,201.5,0.03492585]
[1739280355892,13.32753074,201.54,201.5,0.03492585]
[1739280356988,18.25201312,201.51,201.5,2.585e-05]
[1739280357196,13.29081312,201.51,201.37,3.1552]
[1739280357393,4.9631,201.44,201.4,4.9639]
[1739280357595,4.9631,201.44,201.37,3.1552]
[1739280357887,13.29081312,201.48,201.37,3.1552]
[1739280358087,4.9633,201.43,201.38,4.9644]
[1739280358283,4.9633,201.43,201.4,0.03351437]
[1739280361692,4.963,201.44,201.4,0.03351437]
[1739280362690,4.9634,201.43,201.4,0.03351437]
[1739280362894,13.29081312,201.43,201.4,0.03351437]
[1739280363691,4.9637,201.41,201.4,0.03351437]
[1739280364499,4.9644,201.39,201.34,4.9654]
[1739280364893,4.9644,201.39,201.35,4.9652]
[1739280365099,4.9644,201.39,201.29,14.82301312]
[1739280365601,0.03677525,201.36,201.34,4.9652]
[1739280365903,4.9645,201.38,201.29,14.82301312]
[1739280365904,13.29081312,201.4,201.29,14.82301312]
[1739280366102,0.03489976,201.37,201.33,0.03625011]
[1739280367199,0.03489976,201.37,201.36,4.9649]
[1739280367700,9.976e-05,201.37,201.36,4.9649]
[1739280368703,9.976e-05,201.37,201.33,0.03625011]
[1739280370499,4.9651,201.36,201.33,0.03625011]
[1739280370705,9.976e-05,201.37,201.33,0.03625011]
[1739280371102,4.9659,201.34,201.33,0.03625011]
[1739280372506,4.967,201.3,201.21,3.1349]
[1739280372908,13.29081312,201.32,201.21,3.1349]
[1739280373105,4.9676,201.28,201.21,3.1349]
[1739280373402,13.29081312,201.32,201.21,3.1349]
[1739280373608,5.00234906,201.27,201.23,4.9686]
[1739280373803,0.03444906,201.27,201.23,4.9686]
[1739280374507,0.03444906,201.27,201.22,0.03723284]
[1739280375009,0.03444906,201.27,201.24,4.9683]
[1739280375203,0.03444906,201.27,201.22,0.03723284]
[1739280375405,0.03444906,201.27,201.24,13.29081312]
[1739280375611,4.9659,201.34,201.3,4.9669]
[1739280376306,4.9659,201.34,201.24,13.29081312]
[1739280376810,0.03801139,201.31,201.27,13.3277386]
[1739280377010,13.29081312,201.41,201.3,4.9669]
[1739280377207,0.03374489,201.31,201.27,13.32620126]
[1739280377510,0.03342616,201.31,201.28,4.9674]
[1739280377710,0.03342616,201.31,201.27,13.32318381]
[1739280378211,0.03342616,201.31,201.27,0.03237069]
[1739280378813,0.03342616,201.31,201.28,4.9672]
[1739280379012,0.03342616,201.31,201.27,0.03237069]
[1739280379511,0.03342616,201.31,201.3,4.9669]
[1739280380100,0.03342616,201.31,201.27,0.03237069]
[1739280380305,0.03342616,201.31,201.29,4.9671]
[1739280381407,0.03342616,201.31,201.28,4.9673]
[1739280381606,0.03342616,201.31,201.27,0.03237069]
[1739280382807,0.03342616,201.31,201.28,4.9672]
[1739280383006,0.03342616,201.31,201.27,0.03237069]
[1739280383612,4.9671,201.3,201.27,0.03237069]
[1739280383813,0.03342616,201.31,201.27,0.03237069]
[1739280384715,0.03342616,201.31,201.29,4.9672]
[1739280385818,0.03342616,201.31,201.3,4.9669]
[1739280386111,0.03342616,201.31,201.27,0.03237069]
[1739280386412,0.03342616,201.31,201.29,4.9671]
[1739280386915,0.03342616,201.31,201.27,0.03237069]
[1739280387115,0.03342616,201.31,201.3,4.9669]
[1739280387314,0.03342616,201.31,201.27,0.03237069]
[1739280387806,0.03342616,201.31,201.29,4.9671]
[1739280389516,0.03342616,201.31,201.3,4.9669]
[1739280393914,0.03342616,201.31,201.28,4.9674]
[1739280394111,4.967,201.3,201.27,0.03237069]
[1739280394617,0.03342616,201.31,201.27,0.03237069]
[1739280394817,4.9674,201.28,201.27,0.03237069]
[1739280396116,13.29081312,201.29,201.18,5.27003]
[1739280396423,13.29081312,201.24,201.18,5.27003]
[1739280396622,4.9696,201.19,201.18,5.27003]
[1739280398720,18.29255959,201.21,201.18,5.27003]
[1739280399219,13.32315959,201.21,201.18,5.27003]
[1739280399420,18.29255959,201.21,201.18,5.27003]
[1739280400117,13.32315959,201.21,201.18,5.27003]
[1739280401326,0.03234647,201.21,201.18,5.27003]
[1739280401826,4.9696,201.19,201.18,5.27003]
[1739280407129,13.32315959,201.21,201.16,0.03636799]
[1739280407329,13.29081312,201.17,201.07,3.0023]
[1739280407722,4.9706,201.15,201.07,3.0023]
[1739280408121,13.29081312,201.17,201.1,4.9717]
[1739280408524,4.971,201.14,201.11,0.03415194]
[1739280408730,0.03428711,201.16,201.11,5.00565194]
[1739280409732,4.9706,201.15,201.11,5.00565194]
[1739280410233,0.03428711,201.16,201.11,5.00565194]
[1739280410431,4.9707,201.15,201.11,5.00565194]
[1739280410635,0.03428711,201.16,201.11,0.03415194]
[1739280410931,0.03428711,201.16,201.12,4.9713]
[1739280411227,5.00468711,201.16,201.12,4.9713]
[1739280411433,0.03428711,201.16,201.14,4.9709]
[1739280411633,0.03428711,201.16,201.11,0.03415194]
[1739280412834,0.03428711,201.16,201.15,4.9706]
[1739280417833,0.03428711,201.16,201.14,4.9707]
[1739280418237,0.03428711,201.16,201.11,0.03415194]
[1739280418636,0.03428711,201.16,201.12,4.9712]
[1739280418831,0.03428711,201.16,201.11,0.03415194]
[1739280419937,5.00468711,201.16,201.11,0.03415194]
[1739280420331,0.03428711,201.16,201.11,0.03415194]
[1739280420932,0.03428711,201.16,201.15,4.9706]
[1739280421227,0.03428711,201.16,201.11,0.03415194]
[1739280423441,4.9707,201.15,201.11,0.03415194]
[1739280423637,0.03428711,201.16,201.11,0.03415194]
[1739280424237,4.9711,201.13,201.11,0.03415194]
[1739280424535,0.03428711,201.16,201.11,0.03415194]
[1739280424745,13.29081312,201.14,201.11,0.03415194]
[1739280424945,4.9714,201.12,201.11,0.03415194]
[1739280427551,13.29081312,201.09,200.97,13.29081312]
[1739280427843,13.29081312,201.09,200.96,4.5324]
[1739280428243,4.9733,201.05,201.0,4.9741]
[1739280428645,5.01049536,201.05,201.0,5.00772055]
[1739280429140,5.01049536,201.05,201.01,4.9738]
[1739280429339,5.01049536,201.05,201.0,0.03362055]
[1739280430140,0.03719536,201.05,201.02,4.9738]
[1739280430541,0.03719536,201.05,201.0,0.03362055]
[1739280431345,0.03719536,201.05,201.0,5.00772055]
[1739280431346,4.9735,201.04,201.0,5.00772055]
[1739280431536,0.03719536,201.05,201.0,0.03362055]
[1739280433245,0.03719536,201.05,201.04,4.9733]
[1739280434241,0.03719536,201.05,201.02,4.9736]
[1739280434443,5.01029536,201.05,201.02,4.9736]
[1739280434643,0.03719536,201.05,201.03,4.9735]
[1739280435344,0.03719536,201.05,201.0,0.03362055]
[1739280435544,0.03719536,201.05,201.04,4.9733]
[1739280437036,0.03719536,201.05,201.0,0.03362055]
[1739280438246,5.01049536,201.05,201.01,4.9739]
[1739280438447,5.01049536,201.05,201.0,0.03362055]
[1739280438745,0.03719536,201.05,201.0,0.03362055]
[1739280438946,4.9734,201.04,201.0,0.03362055]
[1739280439141,0.03719536,201.05,201.0,0.03362055]
[1739280439344,4.9739,201.02,201.0,0.03362055]
[1739280439543,0.03719536,201.05,201.0,0.03362055]
[1739280441246,4.9747,200.99,200.87,13.29081312]
[1739280441447,13.29081312,200.94,200.84,25.07329865]
[1739280441752,4.9756,200.96,200.91,4.9765]
[1739280442052,13.29081312,200.97,200.84,13.29081312]
[1739280442446,13.29081312,201.0,200.84,13.29081312]
[1739280442653,0.0313743,200.93,200.88,0.03491383]
[1739280443151,0.0313743,200.93,200.92,4.9763]
[1739280446553,0.0313743,200.93,200.88,0.03491383]
[1739280447258,0.0313743,200.93,200.9,4.9768]
[1739280447950,0.0313743,200.93,200.91,4.9764]
[1739280448155,0.0313743,200.93,200.88,0.03491383]
[1739280448455,13.29081312,200.9,200.88,0.03491383]
[1739280448958,4.9771,200.89,200.88,0.03491383]
[1739280449157,26.58162624,200.9,200.72,13.29081312]
[1739280449454,13.29081312,200.84,200.72,14.78511312]
[1739280450257,0.03803432,200.8,200.76,0.03537817]
[1739280450447,0.03803432,200.8,200.78,4.9797]
[1739280450951,13.32884744,200.8,200.76,5.01567817]
[1739280451148,13.32884744,200.8,200.76,0.03537817]
[1739280451349,0.03803432,200.8,200.76,0.03537817]
[1739280451548,0.03803432,200.8,200.78,4.9797]
[1739280453055,13.29081312,200.86,200.76,0.03537817]
[1739280453250,13.29081312,200.89,200.76,0.03537817]
[1739280453455,13.29081312,200.89,200.83,4.9785]
[1739280453856,13.29081312,200.89,200.75,13.29081312]
[1739280454057,13.29081312,200.89,200.83,4.9784]
[1739280454359,0.03811275,200.84,200.83,4.9784]
[1739280454856,13.29081312,200.92,200.81,3.1678]
[1739280455053,1.5054,200.98,200.81,3.1678]
[1739280455054,13.29081312,200.89,200.81,3.1678]
[1739280455258,18.26791312,200.89,200.81,3.1678]
[1739280455657,13.29081312,200.89,200.81,3.1678]
[1739280455954,0.03769875,200.87,200.83,0.03310972]
[1739280456257,0.03769875,200.87,200.83,5.01160972]
[1739280456459,0.03769875,200.87,200.83,0.03310972]
[1739280458558,0.03769875,200.87,200.84,4.9783]
[1739280458758,0.03769875,200.87,200.83,0.03310972]
[1739280458959,13.29081312,200.86,200.83,0.03310972]
[1739280459153,18.26871312,200.86,200.83,0.03310972]
[1739280459953,13.29081312,200.86,200.83,0.03310972]
[1739280460659,4.9783,200.84,200.83,0.03310972]
[1739280461159,13.29081312,200.86,200.83,0.03310972]
[1739280461556,13.29081312,200.86,200.74,1.5107]
[1739280461763,13.29081312,200.8,200.74,1.5107]
[1739280462058,13.29081312,200.8,200.75,4.9805]
[1739280462363,13.29081312,200.8,200.74,1.5107]
[1739280462757,13.29081312,200.8,200.77,4.9798]
[1739280462758,0.03426611,200.79,200.77,4.9798]
[1739280462965,0.03426611,200.79,200.75,0.03771095]
[1739280463264,0.03426611,200.79,200.75,5.01821095]